{"text_format":"1","workbook":"xlsx","n_sheets":3,"sheets":["Offerte","Teksten","Lijsten"],"not_rendered":{"charts":0,"images":0,"macros":1,"external_links":0,"defined_names":8,"comments":0,"pivot_tables":0},"unopened":[],"bounds":{"document_bytes":16777216,"sheet_cells":100000,"rows_first":2000,"rows_last":500,"rows_between":2000,"halvings":0,"cell_chars":16384,"cell_head_chars":4096},"cells_cut":0,"cells_raw":0,"read":"whole","date_system":"1900"}

{"sheet":"Offerte","index":0,"n_rows":62,"n_cols":7,"rows_kept":62,"cut":false,"hidden":false,"merged":[[10,3,10,5],[1,0,1,1],[2,0,2,1],[3,0,3,1],[8,3,8,5],[9,3,9,5],[13,0,14,0],[13,1,14,3],[13,4,14,4],[13,5,14,5],[16,1,16,2],[16,4,16,5],[17,1,17,2],[17,4,17,5],[18,1,18,2],[18,4,18,5],[11,4,11,5]]}
[null,null,null,null,null,null,"Staanders"]
[null,null,null,null,null,null,"Montage"]
[null,null,null,null,null,null,"Kleur"]
[null,null,null,null,null,null,"Hoogte"]
[null,null,null,null,null,null,"Handgreep"]
[null,null,null,null,null,null,"Horizontale"]
[]
[]
[]
[]
[]
[null,null,null,"tav.:"]
[]
["Offerte nr",null,null,null,"datum :"]
[]
[]
["Project",null,null,"tel :"]
["Adres",null,null,"GSM :"]
[null,null,null,"Email :"]
[]
["Artnr","Omschrijving","Eenh","Aantal","prijs/eenh","totaal"]
[null,null,null,null,null,{"$f":"E22*D22","v":0}]
[null,"   - Kleur : geanodiseerd natuur 25Mc of gemoffeld in RAL kleur"]
[null,"   - Hoogte: 600 mm"]
[null,"   - Handgreep : dia 50x2"]
[null,"   - Horizontale :  3x dia 25x2"]
[null,"   - Staanders: uit profiel 43x20"]
[null,"   - Montage: op balkon - recht - niet schuinlopend"]
[null,"   - Hoogte: 1100 mm",null,null,{"$f":"IF(D29<>\"\",VLOOKUP(B29,Lijsten!A23:B39,2,FALSE),\"\")","v":""},{"$f":"IF(D29<>\"\",E29*D29,\"\")","v":""}]
[null,"   - Hoogte: 1100 mm",null,null,{"$f":"IF(D30<>\"\",VLOOKUP(B30,Lijsten!A24:B40,2,FALSE),\"\")","v":""},""]
[null,null,null,null,{"$f":"IF(D31<>\"\",VLOOKUP(B31,Lijsten!A25:B41,2,FALSE),\"\")","v":""},""]
[null,null,null,null,{"$f":"IF(D32<>\"\",VLOOKUP(B32,Lijsten!A26:B42,2,FALSE),\"\")","v":""},""]
[null,null,null,null,{"$f":"IF(D33<>\"\",VLOOKUP(B33,Lijsten!A27:B43,2,FALSE),\"\")","v":""},""]
[null,null,null,null,{"$f":"IF(D34<>\"\",VLOOKUP(B34,Lijsten!A28:B44,2,FALSE),\"\")","v":""},""]
[null,null,null,null,{"$f":"IF(D35<>\"\",VLOOKUP(B35,Lijsten!A29:B45,2,FALSE),\"\")","v":""},""]
[null,null,null,null,{"$f":"IF(D36<>\"\",VLOOKUP(B36,Lijsten!A30:B46,2,FALSE),\"\")","v":""},""]
[null,null,null,null,{"$f":"IF(D37<>\"\",VLOOKUP(B37,Lijsten!A31:B47,2,FALSE),\"\")","v":""},""]
[null,null,null,null,{"$f":"IF(D38<>\"\",VLOOKUP(B38,Lijsten!A32:B48,2,FALSE),\"\")","v":""},""]
[null,null,null,null,{"$f":"IF(D39<>\"\",VLOOKUP(B39,Lijsten!A33:B49,2,FALSE),\"\")","v":""},""]
[null,null,null,null,{"$f":"IF(D40<>\"\",VLOOKUP(B40,Lijsten!A34:B50,2,FALSE),\"\")","v":""},""]
[null,null,null,null,{"$f":"IF(D41<>\"\",VLOOKUP(B41,Lijsten!A35:B51,2,FALSE),\"\")","v":""},""]
[null,null,null,null,{"$f":"IF(D42<>\"\",VLOOKUP(B42,Lijsten!A36:B52,2,FALSE),\"\")","v":""},""]
[null,null,null,null,{"$f":"IF(D43<>\"\",VLOOKUP(B43,Lijsten!A37:B53,2,FALSE),\"\")","v":""},""]
[null,null,null,null,{"$f":"IF(D44<>\"\",VLOOKUP(B44,Lijsten!A38:B54,2,FALSE),\"\")","v":""},""]
[null,null,null,null,{"$f":"IF(D45<>\"\",VLOOKUP(B45,Lijsten!A39:B55,2,FALSE),\"\")","v":""},""]
[null,null,null,null,{"$f":"IF(D46<>\"\",VLOOKUP(B46,Lijsten!A40:B56,2,FALSE),\"\")","v":""},""]
[null,null,null,null,{"$f":"IF(D47<>\"\",VLOOKUP(B47,Lijsten!A41:B57,2,FALSE),\"\")","v":""},""]
[null,null,null,null,{"$f":"IF(D48<>\"\",VLOOKUP(B48,Lijsten!A42:B58,2,FALSE),\"\")","v":""}]
[null,null,null,null,{"$f":"IF(D49<>\"\",VLOOKUP(B49,Lijsten!A43:B59,2,FALSE),\"\")","v":""}]
[null,null,null,null,{"$f":"IF(B50<>\"\",VLOOKUP(B50,Lijsten!A44:B60,2,FALSE),\"\")","v":""}]
[]
[]
[]
[]
[]
[]
[]
[null,null,null,null,null,{"$f":"E58*D58","v":0}]
[]
[]
[]
[null,null,null,null,"Tot. Excl btw",{"$f":"SUM(F22:F59)","v":0}]

{"sheet":"Teksten","index":1,"n_rows":17,"n_cols":1,"rows_kept":17,"cut":false,"hidden":false,"merged":[]}
["standaard - H 1200mm"]
[]
["   - Kleur : geanodiseerd natuur 25Mc"]
["   - Hoogte: 1200 mm"]
["   - Handgreep : dia 50x2"]
["   - Horizontale :  9x dia 25x2"]
["   - Staanders: uit profiel 43x20"]
["   - Montage: op balkon"]
[]
[" standaard - H 600mm"]
[]
["   - Kleur : geanodiseerd natuur 25Mc of gemoffeld in RAL kleur"]
["   - Hoogte: 600 mm"]
["   - Handgreep : dia 50x2"]
["   - Horizontale :  3x dia 25x2"]
["   - Staanders: uit profiel 43x20"]
["   - Montage: op muurafdekkap in onderliggende betonbalk (muurafdekkap niet inbegrepen)"]

{"sheet":"Lijsten","index":2,"n_rows":30,"n_cols":21,"rows_kept":30,"cut":false,"hidden":false,"merged":[]}
["   - Montage: op balkon",null,null,null,null,null,null,null,null,null,"   - Kleur : gemoffeld naar keuze - maritiem",null,null,null,null,null,null,null,null,null,"   - Hoogte: 1100 mm"]
["   - Montage: op arduin dorpel - voor ramen",null,null,null,null,null,null,null,null,null,"   - Kleur : geanodiseerd natuur 25Mc",null,null,null,null,null,null,null,null,null,"   - Hoogte: 1200 mm"]
["   - Montage: op balkon - recht - niet schuinlopend",null,null,null,null,null,null,null,null,null,"   - Kleur : gemoffeld in RAL kleur naar keuze"]
["   - Montage: op muurafdekkap in onderliggende betonbalk (muurafdekkap niet inbegrepen)",null,null,null,null,null,null,null,null,null,"   - Kleur : geanodiseerd natuur 25Mc of gemoffeld in RAL kleur"]
["   - Montage: op balkon"]
["   - Montage: op arduin dorpel - voor ramen"]
["   - Montage: op balkon - recht - niet schuinlopend"]
["   - Montage: op muurafdekkap in onderliggende betonbalk (muurafdekkap niet inbegrepen)"]
[]
[]
[]
[]
[]
[]
[]
[]
["   - Montage: op balkon",10]
["   - Montage: op arduin dorpel - voor ramen",5]
["   - Montage: op balkon - recht - niet schuinlopend"]
["   - Montage: op muurafdekkap in onderliggende betonbalk (muurafdekkap niet inbegrepen)"]
["   - Montage: op balkon"]
["   - Montage: op arduin dorpel - voor ramen",5]
["   - Montage: op balkon - recht - niet schuinlopend",15]
["   - Montage: op muurafdekkap in onderliggende betonbalk (muurafdekkap niet inbegrepen)"]
["   - Kleur : gemoffeld naar keuze - maritiem"]
["   - Kleur : geanodiseerd natuur 25Mc",20]
["   - Kleur : gemoffeld in RAL kleur naar keuze"]
["   - Kleur : geanodiseerd natuur 25Mc of gemoffeld in RAL kleur",10]
["   - Hoogte: 1100 mm",10]
["   - Hoogte: 1200 mm"]